fUST/lending_fUST_20240817
["ID","MTS","AMOUNT","RATE_DAILY","PERIOD"]
[335152599,1723890955841,-762.22,0.00022465,2]
[335152600,1723890955866,-723.81,0.00022465,2]
[335152601,1723890955892,-2323.51,0.00022465,2]
[335152602,1723890955917,-500.0,0.00022465,2]
[335152603,1723890955942,-500.0,0.00022465,2]
[335152604,1723890955972,-3467.25,0.00022465,2]
[335152605,1723890955998,-500.0,0.00022465,2]
[335152606,1723890956022,-500.0,0.00022465,2]
[335152607,1723890956048,-500.0,0.00022465,2]
[335152608,1723890956075,-500.0,0.00022465,2]
[335152609,1723890956102,-653.5,0.00022465,2]
[335152610,1723890956128,-500.0,0.00022465,2]
[335152611,1723890956157,-500.0,0.00022465,2]
[335152612,1723890956183,-500.0,0.00022465,2]
[335152613,1723890956210,-500.0,0.00022465,2]
[335152614,1723890956236,-10339.94871612,0.00022499,2]
[335152615,1723890956262,-47557.3418002,0.00022575,3]
[335152616,1723890956286,-150.112233,0.000226,3]
[335152617,1723890956312,-500.0,0.00022663,2]
[335152618,1723890956336,-500.0,0.00022665,2]
[335152619,1723890956362,-500.0,0.00022673,2]
[335152620,1723890956388,-500.0,0.00022675,2]
[335152621,1723890956415,-500.0,0.00022699,2]
[335152622,1723890956443,-150.112233,0.000227,3]
[335152623,1723890956473,-15852.4472667,0.00022728,3]
[335152624,1723890956499,-15383.86794834,0.00022729,3]
[335152635,1723891357019,-24726.62663769,0.00013497,2]
[335152636,1723891357043,-300.0,0.00013595,2]
[335152637,1723891357067,-189.9631639,0.00013971,2]
[335152638,1723891357090,-154.97119308,0.00013971,2]
[335152639,1723891357114,-850.51877308,0.00013971,2]
[335152640,1723891357137,-154.95696988,0.00013971,2]
[335152641,1723891357160,-305.96111749,0.00013971,2]
[335152642,1723891357185,-705.10320183,0.00013971,2]
[335152643,1723891357210,-320.08358525,0.00013971,2]
[335152644,1723891357235,-202.5136928,0.00013971,2]
[335152645,1723891357263,-187.5,0.00014247,2]
[335152646,1723891358045,288.10768054,0.00013792,2]
[335152647,1723891361124,-500.0,0.00016842,2]
[335152648,1723891361152,-500.0,0.00016842,2]
[335152649,1723891361180,-500.0,0.00016842,2]
[335152650,1723891361216,-500.0,0.00016842,2]
[335152651,1723891361243,-500.0,0.00016842,2]
[335152652,1723891361275,-500.0,0.00016842,2]
[335152653,1723891361305,-500.0,0.00016842,2]
[335152654,1723891361332,-500.0,0.00016842,2]
[335152655,1723891361358,-399.76121845,0.00016842,2]
[335152656,1723891361384,-500.0,0.00016842,2]
[335152657,1723891361409,-500.0,0.00016842,2]
[335152658,1723891361436,-500.0,0.00016842,2]
[335152659,1723891361461,-500.0,0.00016842,2]
[335152660,1723891361484,-3119.2624665,0.00016843,2]
[335152661,1723891361508,-205.84891445,0.00018,2]
[335152662,1723891361534,-1455.130475,0.0001909,2]
[335152663,1723891361558,-169.948311,0.00019178,2]
[335152664,1723891361583,-3812.82333397,0.00019477,2]
[335152665,1723891361610,-24900.0,0.00019577,2]
[335152666,1723891361811,-157.729292,0.00019853,2]
[335152667,1723891361839,-157.729292,0.00019907,2]
[335152668,1723891361865,-157.729292,0.00019962,2]
[335152669,1723891361891,-156.6016576,0.0002,2]
[335152670,1723891361918,-157.729292,0.00020016,2]
[335152671,1723891361944,-157.729292,0.0002007,2]
[335152672,1723891361971,-157.729292,0.00020125,2]
[335152673,1723891361996,-157.729292,0.00020179,2]
[335152674,1723891362021,-157.729292,0.00020234,2]
[335152675,1723891362046,-157.729292,0.00020288,2]
[335152676,1723891362072,-157.729292,0.00020343,2]
[335152677,1723891362098,-178.077466,0.00020382,2]
[335152678,1723891362125,-157.729292,0.00020397,2]
[335152679,1723891362152,-178.077466,0.00020399,2]
[335152680,1723891362177,-178.077466,0.00020416,2]
[335152681,1723891362202,-178.077466,0.00020433,2]
[335152682,1723891362229,-178.077466,0.0002045,2]
[335152683,1723891362258,-157.729292,0.00020451,2]
[335152684,1723891362282,-178.077466,0.00020467,2]
[335152685,1723891362307,-178.077466,0.00020484,2]
[335152686,1723891362334,-157.729292,0.00020506,2]
[335152687,1723891362360,-157.729292,0.0002056,2]
[335152688,1723891362386,-157.729292,0.00020615,2]
[335152689,1723891362413,-157.729292,0.00020669,2]
[335152690,1723891362438,-157.729292,0.00020724,2]
[335152691,1723891362465,-157.729292,0.00020778,2]
[335152692,1723891362492,-157.729292,0.00020833,2]
[335152693,1723891362519,-157.729292,0.00020887,2]
[335152694,1723891362542,-251.0,0.00020913,2]
[335152695,1723891362567,-217.55302416,0.00021105,2]
[335152696,1723891362594,-150.112233,0.000219,4]
[335152697,1723891362619,-199.51,0.00021905,3]
[335152698,1723891362644,-242.27,0.00021905,3]
[335152699,1723891362670,-726.86,0.00021905,3]
[335152700,1723891362695,-340.80496059,0.00021906,2]
[335152701,1723891362720,-500.0,0.00021906,2]
[335152702,1723891362747,-200.39440718,0.00021906,2]
[335152703,1723891362772,-500.0,0.00021906,2]
[335152704,1723891362796,-500.0,0.00021906,2]
[335152705,1723891362821,-500.0,0.00021906,2]
[335152706,1723891362847,-500.0,0.00021906,2]
[335152707,1723891362871,-500.0,0.00021906,2]
[335152708,1723891362897,-500.0,0.00021906,2]
[335152709,1723891362923,-500.0,0.00021906,2]
[335152710,1723891362947,-198.90539095,0.00021906,2]
[335152711,1723891362972,-500.0,0.00021906,2]
[335152712,1723891362998,-500.0,0.00021906,2]
[335152713,1723891363025,-500.0,0.00021906,2]
[335152714,1723891364325,-500.0,0.00021906,2]
[335152715,1723891364357,-500.0,0.00021906,2]
[335152716,1723891364385,-500.0,0.00021906,2]
[335152717,1723891364413,-500.0,0.00021906,2]
[335152718,1723891364441,-500.0,0.00021906,2]
[335152719,1723891364467,-500.0,0.00021906,2]
[335152720,1723891364495,-10327.5196893,0.00021907,3]
[335152721,1723891364523,-500.0,0.00021917,2]
[335152722,1723891364550,-233.35390209,0.00021917,2]
[335152723,1723891364576,-507.95356114,0.00021917,2]
[335152724,1723891364603,-506.55459487,0.00021917,2]
[335152725,1723891364630,-604.91,0.00021917,2]
[335152726,1723891364657,-511.43444386,0.00021917,2]
[335152727,1723891364683,-634.93191752,0.00021917,2]
[335152728,1723891364710,-500.0,0.00021917,2]
[335152729,1723891364736,-500.0,0.00021917,2]
[335152730,1723891364763,-503.64181494,0.00021917,2]
[335152731,1723891364788,-500.0,0.00021917,2]
[335152732,1723891364814,-500.0,0.00021917,2]
[335152733,1723891364840,-500.0,0.00021917,2]
[335152734,1723891364865,-500.0,0.00021917,2]
[335152735,1723891364889,-500.0,0.00021917,2]
[335152736,1723891364914,-503.1563664,0.00021917,2]
[335152737,1723891364940,-500.0,0.00021917,2]
[335152738,1723891364964,-503.3234106,0.00021917,2]
[335152739,1723891364990,-500.0,0.00021917,2]
[335152740,1723891365016,-1091.72,0.00021917,2]
[335152741,1723891365041,-500.0,0.00021917,2]
[335152742,1723891365066,-500.0,0.00021917,2]
[335152743,1723891365091,-500.0,0.00021917,2]
[335152744,1723891365115,-500.0,0.00021917,2]
[335152745,1723891365139,-234.60264328,0.00021917,2]
[335152746,1723891365165,-863.04,0.00021917,2]
[335152747,1723891365193,-500.0,0.00021917,2]
[335152748,1723891365219,-633.13,0.00021917,2]
[335152749,1723891365249,-681.39,0.00021917,2]
[335152750,1723891365278,-500.0,0.00021917,2]
[335152751,1723891365303,-500.0,0.00021917,2]
[335152752,1723891365331,-331.48780244,0.00021917,2]
[335152753,1723891365358,-500.0,0.00021917,2]
[335152754,1723891365385,-500.0,0.00021917,2]
[335152755,1723891365411,-500.0,0.00021917,2]
[335152756,1723891365440,-500.0,0.00021917,2]
[335152757,1723891365467,-500.0,0.00021917,2]
[335152758,1723891365495,-500.0,0.00021917,2]
[335152759,1723891365524,-500.0,0.00021917,2]
[335152760,1723891365549,-212.56,0.00021917,2]
[335152761,1723891365575,-500.0,0.00021917,2]
[335152762,1723891365599,-500.0,0.00021917,2]
[335152763,1723891365626,-500.0,0.00021917,2]
[335152764,1723891365652,-500.0,0.00021917,2]
[335152765,1723891365679,-500.0,0.00021917,2]
[335152766,1723891365707,-604.59,0.00021917,2]
[335152767,1723891365736,-500.0,0.00021917,2]
[335152768,1723891365762,-500.0,0.00021917,2]
[335152769,1723891365788,-500.0,0.00021917,2]
[335152770,1723891365814,-500.0,0.00021917,2]
[335152771,1723891365839,-500.0,0.00021917,2]
[335152772,1723891365865,-615.38,0.00021917,2]
[335152773,1723891365890,-500.0,0.00021917,2]
[335152774,1723891365917,-500.0,0.00021917,2]
[335152775,1723891365942,-500.0,0.00021917,2]
[335152776,1723891365967,-500.0,0.00021917,2]
[335152777,1723891365997,-500.0,0.00021917,2]
[335152778,1723891366024,-500.0,0.00021917,2]
[335152779,1723891366055,-500.0,0.00021917,2]
[335152780,1723891366082,-500.0,0.00021917,2]
[335152781,1723891366110,-500.0,0.00021917,2]
[335152782,1723891366139,-1269.87,0.00021917,2]
[335152783,1723891366164,-500.0,0.00021917,2]
[335152784,1723891366189,-500.0,0.00021917,2]
[335152785,1723891366215,-500.0,0.00021917,2]
[335152786,1723891366243,-500.0,0.00021917,2]
[335152787,1723891366274,-500.0,0.00021917,2]
[335152788,1723891366301,-500.0,0.00021917,2]
[335152789,1723891366327,-500.0,0.00021917,2]
[335152790,1723891366355,-500.0,0.00021917,2]
[335152791,1723891366380,-500.0,0.00021917,2]
[335152792,1723891366406,-935.54,0.00021917,2]
[335152793,1723891366431,-500.0,0.00021917,2]
[335152794,1723891366456,-748.07,0.00021917,2]
[335152795,1723891366481,-500.0,0.00021917,2]
[335152796,1723891366506,-554.61,0.00021917,2]
[335152797,1723891366531,-523.29315083,0.00021917,2]
[335152798,1723891366707,-1119.04,0.00021917,2]
[335152799,1723891366732,-500.0,0.00021917,2]
[335152800,1723891366758,-500.0,0.00021917,2]
[335152801,1723891366784,-500.0,0.00021917,2]
[335152802,1723891366809,-500.0,0.00021917,2]
[335152803,1723891366835,-596.96,0.00021917,2]
[335152804,1723891366861,-500.0,0.00021917,2]
[335152805,1723891366887,-500.0,0.00021917,2]
[335152806,1723891366912,-595.55,0.00021917,2]
[335152807,1723891366938,-500.0,0.00021917,2]
[335152808,1723891366963,-500.0,0.00021917,2]
[335152809,1723891366988,-733.25,0.00021917,2]
[335152810,1723891367014,-500.0,0.00021917,2]
[335152811,1723891367038,-611.55,0.00021917,2]
[335152812,1723891367065,-500.0,0.00021917,2]
[335152813,1723891367090,-557.24,0.00021917,2]
[335152814,1723891367116,-500.0,0.00021917,2]
[335152815,1723891367142,-1056.32,0.00021917,2]
[335152816,1723891367169,-500.0,0.00021917,2]
[335152817,1723891367194,-500.0,0.00021917,2]
[335152818,1723891367219,-528.21,0.00021917,2]
[335152819,1723891367245,-788.64,0.00021917,2]
[335152820,1723891367274,-714.0,0.00021917,2]
[335152821,1723891367299,-500.0,0.00021917,2]
[335152822,1723891367326,-500.0,0.00021917,2]
[335152823,1723891367352,-521.44,0.00021917,2]
[335152824,1723891367378,-604.07,0.00021917,2]
[335152825,1723891367402,-500.0,0.00021917,2]
[335152826,1723891367427,-500.0,0.00021917,2]
[335152827,1723891367452,-1279.11,0.00021917,2]
[335152828,1723891367477,-611.28,0.00021917,2]
[335152829,1723891367501,-500.0,0.00021917,2]
[335152830,1723891367527,-500.0,0.00021917,2]
[335152831,1723891367551,-500.0,0.00021917,2]
[335152832,1723891367576,-2691.39,0.00021917,2]
[335152833,1723891367600,-500.0,0.00021917,2]
[335152834,1723891367626,-500.0,0.00021917,2]
[335152835,1723891367652,-500.0,0.00021917,2]
[335152836,1723891367677,-500.0,0.00021917,2]
[335152837,1723891367702,-500.0,0.00021917,2]
[335152838,1723891367727,-611.25,0.00021917,2]
[335152839,1723891367752,-500.0,0.00021917,2]
[335152840,1723891367776,-500.0,0.00021917,2]
[335152841,1723891367801,-500.0,0.00021917,2]
[335152842,1723891367826,-673.24,0.00021917,2]
[335152843,1723891367850,-786.26,0.00021917,2]
[335152844,1723891367875,-500.0,0.00021917,2]
[335152845,1723891367899,-2049.78,0.00021917,2]
[335152846,1723891367924,-868.03,0.00021917,2]
[335152847,1723891367949,-500.0,0.00021917,2]
[335152848,1723891367974,-1141.49,0.00021917,2]
[335152849,1723891368000,-1514.85,0.00021917,2]
[335152850,1723891368024,-500.0,0.00021917,2]
[335152851,1723891368049,-852.88,0.00021917,2]
[335152852,1723891368075,-500.0,0.00021917,2]
[335152853,1723891368101,-500.0,0.00021917,2]
[335152854,1723891368127,-4453.72,0.00021917,2]
[335152855,1723891368152,-154.95008082,0.00021917,2]
[335152856,1723891368177,-500.0,0.00021917,2]
[335152857,1723891368203,-500.0,0.00021917,2]
[335152858,1723891368228,-500.0,0.00021917,2]
[335152859,1723891368255,-500.0,0.00021917,2]
[335152860,1723891368281,-1273.07,0.00021917,2]
[335152861,1723891368307,-500.0,0.00021917,2]
[335152862,1723891368332,-500.0,0.00021917,2]
[335152863,1723891368359,-616.47,0.00021917,2]
[335152864,1723891368384,-500.0,0.00021917,2]
[335152865,1723891368409,-500.0,0.00021917,2]
[335152866,1723891368435,-500.0,0.00021917,2]
[335152867,1723891368460,-500.0,0.00021917,2]
[335152868,1723891368486,-500.0,0.00021917,2]
[335152869,1723891368512,-575.39,0.00021917,2]
[335152870,1723891368538,-766.96,0.00021917,2]
[335152871,1723891368562,-500.0,0.00021917,2]
[335152872,1723891368587,-1100.47,0.00021917,2]
[335152873,1723891368613,-1098.98,0.00021917,2]
[335152874,1723891368638,-500.0,0.00021917,2]
[335152875,1723891368664,-500.0,0.00021917,2]
[335152876,1723891368691,-724.68,0.00021917,2]
[335152877,1723891368717,-500.0,0.00021917,2]
[335152878,1723891368744,-848.12,0.00021917,2]
[335152879,1723891368770,-500.0,0.00021917,2]
[335152880,1723891368795,-995.03,0.00021917,2]
[335152881,1723891368821,-500.0,0.00021917,2]
[335152882,1723891368847,-582.62,0.00021917,2]
[335152883,1723891368874,-525.6,0.00021917,2]
[335152884,1723891368900,-500.0,0.00021917,2]
[335152885,1723891368926,-500.0,0.00021917,2]
[335152886,1723891368951,-500.0,0.00021917,2]
[335152887,1723891368976,-500.0,0.00021917,2]
[335152888,1723891369004,-500.0,0.00021917,2]
[335152889,1723891369030,-500.0,0.00021917,2]
[335152890,1723891369055,-594.41,0.00021917,2]
[335152891,1723891369083,-500.0,0.00021917,2]
[335152892,1723891369116,-500.0,0.00021917,2]
[335152893,1723891369149,-506.91,0.00021917,2]
[335152894,1723891369179,-500.0,0.00021917,2]
[335152895,1723891369207,-500.0,0.00021917,2]
[335152896,1723891369239,-911.63,0.00021917,2]
[335152897,1723891369272,-500.0,0.00021917,2]
[335152898,1723891369303,-500.0,0.00021917,2]
[335152899,1723891369335,-825.45,0.00021917,2]
[335152900,1723891369368,-252.40579209,0.00021917,2]
[335152901,1723891369399,-500.0,0.00021917,2]
[335152902,1723891369431,-500.0,0.00021917,2]
[335152903,1723891369461,-500.0,0.00021917,2]
[335152904,1723891369499,-500.0,0.00021917,2]
[335152905,1723891369530,-500.0,0.00021917,2]
[335152906,1723891369560,-500.0,0.00021917,2]
[335152907,1723891369589,-500.0,0.00021917,2]
[335152908,1723891369617,-500.0,0.00021917,2]
[335152909,1723891369648,-500.0,0.00021917,2]
[335152910,1723891369679,-500.0,0.00021917,2]
[335152911,1723891369710,-500.0,0.00021917,2]
[335152912,1723891369742,-500.0,0.00021917,2]
[335152913,1723891369775,-500.0,0.00021917,2]
[335152914,1723891369806,-500.0,0.00021917,2]
[335152915,1723891369836,-500.0,0.00021917,2]
[335152916,1723891369863,-500.0,0.00021917,2]
[335152917,1723891369891,-500.0,0.00021917,2]
[335152918,1723891369921,-500.0,0.00021917,2]
[335152919,1723891369951,-500.0,0.00021917,2]
[335152920,1723891369985,-500.0,0.00021917,2]
[335152921,1723891370014,-585.54,0.00021917,2]
[335152922,1723891370046,-500.0,0.00021917,2]
[335152923,1723891370076,-500.0,0.00021917,2]
[335152924,1723891370107,-2531.26,0.00021917,2]
[335152925,1723891370137,-757.2,0.00021917,2]
[335152926,1723891370167,-500.0,0.00021917,2]
[335152927,1723891370195,-500.0,0.00021917,2]
[335152928,1723891370223,-500.0,0.00021917,2]
[335152929,1723891370256,-6925.33,0.00021917,2]
[335152930,1723891370286,-500.0,0.00021917,2]
[335152931,1723891370323,-500.0,0.00021917,2]
[335152932,1723891370354,-500.0,0.00021917,2]
[335152933,1723891370383,-753.32,0.00021917,2]
[335152934,1723891370412,-500.0,0.00021917,2]
[335152935,1723891370444,-500.0,0.00021917,2]
[335152936,1723891370476,-500.0,0.00021917,2]
[335152937,1723891370505,-500.0,0.00021917,2]
[335152938,1723891370537,-500.0,0.00021917,2]
[335152939,1723891370567,-500.0,0.00021917,2]
[335152940,1723891370597,-500.0,0.00021917,2]
[335152941,1723891370629,-502.37,0.00021917,2]
[335152942,1723891370659,-646.63,0.00021917,2]
[335152943,1723891370691,-500.0,0.00021917,2]
[335152944,1723891370721,-500.0,0.00021917,2]
[335152945,1723891370751,-500.0,0.00021917,2]
[335152946,1723891370780,-1147.61,0.00021917,2]
[335152947,1723891370809,-786.45,0.00021917,2]
[335152948,1723891370838,-500.0,0.00021917,2]
[335152949,1723891370867,-500.0,0.00021917,2]
[335152950,1723891370894,-500.0,0.00021917,2]
[335152951,1723891370922,-500.0,0.00021917,2]
[335152952,1723891370950,-500.0,0.00021917,2]
[335152953,1723891370979,-500.0,0.00021917,2]
[335152954,1723891371006,-500.0,0.00021917,2]
[335152955,1723891371039,-500.0,0.00021917,2]
[335152956,1723891371066,-500.0,0.00021917,2]
[335152957,1723891371095,-500.62068146,0.00021917,2]
[335152958,1723891371123,-500.0,0.00021917,2]
[335152959,1723891371150,-656.6,0.00021917,2]
[335152960,1723891371176,-500.0,0.00021917,2]
[335152961,1723891371204,-500.0,0.00021917,2]
[335152962,1723891371233,-734.42,0.00021917,2]
[335152963,1723891371262,-645.44374883,0.00021917,2]
[335152964,1723891371289,-500.0,0.00021917,2]
[335152965,1723891371321,-623.95,0.00021917,2]
[335152966,1723891371354,-500.0,0.00021917,2]
[335152967,1723891371384,-500.0,0.00021917,2]
[335152968,1723891371411,-508.3851718,0.00021917,2]
[335152969,1723891371439,-500.0,0.00021917,2]
[335152970,1723891371468,-500.0,0.00021917,2]
[335152971,1723891371497,-500.0,0.00021917,2]
[335152972,1723891371523,-500.0,0.00021917,2]
[335152973,1723891371552,-500.0,0.00021917,2]
[335152974,1723891371580,-4404.55,0.00021917,2]
[335152975,1723891371608,-500.0,0.00021917,2]
[335152976,1723891371635,-4404.55,0.00021917,2]
[335152977,1723891371663,-4404.55,0.00021917,2]
[335152978,1723891371692,-500.0,0.00021917,2]
[335152979,1723891371720,-500.0,0.00021917,2]
[335152980,1723891371748,-854.07,0.00021917,2]
[335152981,1723891371776,-1042.81,0.00021917,2]
[335152982,1723891371804,-670.26,0.00021917,2]
[335152983,1723891371833,-500.0,0.00021917,2]
[335152984,1723891371861,-471.50924962,0.00021917,2]
[335152985,1723891372138,-500.0,0.00021917,2]
[335152986,1723891372165,-408.96078334,0.00021917,2]
[335152987,1723891372190,-621.85,0.00021917,2]
[335152988,1723891372216,-1476.29,0.00021917,2]
[335152989,1723891372243,-500.0,0.00021917,2]
[335152990,1723891372274,-1725.7,0.00021917,2]
[335152991,1723891372302,-200.0,0.00021973,2]
[335152992,1723891372329,-200.0,0.00021973,2]
[335152993,1723891372354,-200.0,0.00021973,2]
[335152994,1723891372379,-150.112233,0.00022,4]
[335152995,1723891372404,-150.112233,0.000221,3]
[335152996,1723891372432,-10339.94871612,0.0002216,2]
[335152997,1723891372461,-10327.5196893,0.00022181,3]
[335152998,1723891372487,-500.0,0.0002219,2]
[335152999,1723891372511,-500.0,0.0002219,2]
[335153000,1723891372536,-4404.55,0.0002219,2]
[335153001,1723891372562,-4404.55,0.0002219,2]
[335153002,1723891372587,-500.0,0.00022191,2]
[335153003,1723891372612,-604.91,0.00022191,2]
[335153004,1723891372638,-500.0,0.00022191,2]
[335153005,1723891372662,-500.0,0.00022191,2]
[335153006,1723891372688,-500.0,0.00022191,2]
[335153007,1723891372712,-500.0,0.00022191,2]
[335153008,1723891372747,-500.0,0.00022191,2]
[335153009,1723891372773,-500.0,0.00022191,2]
[335153010,1723891372798,-500.0,0.00022191,2]
[335153011,1723891372824,-500.0,0.00022191,2]
[335153012,1723891372849,-1091.72,0.00022191,2]
[335153013,1723891372874,-500.0,0.00022191,2]
[335153014,1723891372902,-500.0,0.00022191,2]
[335153015,1723891372929,-863.04,0.00022191,2]
[335153016,1723891372954,-500.0,0.00022191,2]
[335153017,1723891372981,-633.13,0.00022191,2]
[335153018,1723891373007,-681.39,0.00022191,2]
[335153019,1723891373034,-500.0,0.00022191,2]
[335153020,1723891373062,-500.0,0.00022191,2]
[335153021,1723891373090,-500.0,0.00022191,2]
[335153022,1723891373116,-500.0,0.00022191,2]
[335153023,1723891373142,-500.0,0.00022191,2]
[335153024,1723891373168,-500.0,0.00022191,2]
[335153025,1723891373193,-500.0,0.00022191,2]
[335153026,1723891373220,-500.0,0.00022191,2]
[335153027,1723891373252,-500.0,0.00022191,2]
[335153028,1723891373278,-500.0,0.00022191,2]
[335153029,1723891373303,-500.0,0.00022191,2]
[335153030,1723891373330,-500.0,0.00022191,2]
[335153031,1723891373355,-500.0,0.00022191,2]
[335153032,1723891373380,-520.66936567,0.00022191,2]
[335153033,1723891373406,-604.59,0.00022191,2]
[335153034,1723891373434,-500.0,0.00022191,2]
[335153035,1723891373459,-500.0,0.00022191,2]
[335153036,1723891373484,-500.0,0.00022191,2]
[335153037,1723891373509,-500.0,0.00022191,2]
[335153038,1723891373536,-615.38,0.00022191,2]
[335153039,1723891373564,-500.0,0.00022191,2]
[335153040,1723891373590,-500.0,0.00022191,2]
[335153041,1723891373615,-500.0,0.00022191,2]
[335153042,1723891373641,-500.0,0.00022191,2]
[335153043,1723891373667,-500.0,0.00022191,2]
[335153044,1723891373694,-500.0,0.00022191,2]
[335153045,1723891373720,-500.0,0.00022191,2]
[335153046,1723891373745,-1269.87,0.00022191,2]
[335153047,1723891373769,-500.0,0.00022191,2]
[335153048,1723891373795,-500.0,0.00022191,2]
[335153049,1723891373820,-500.0,0.00022191,2]
[335153050,1723891373844,-500.0,0.00022191,2]
[335153051,1723891373870,-500.0,0.00022191,2]
[335153052,1723891373896,-500.0,0.00022191,2]
[335153053,1723891373921,-500.0,0.00022191,2]
[335153054,1723891373948,-500.0,0.00022191,2]
[335153055,1723891373973,-935.54,0.00022191,2]
[335153056,1723891373999,-500.0,0.00022191,2]
[335153057,1723891374026,-748.07,0.00022191,2]
[335153058,1723891374052,-500.0,0.00022191,2]
[335153059,1723891374078,-554.61,0.00022191,2]
[335153060,1723891374105,-1119.04,0.00022191,2]
[335153061,1723891374132,-593.8840288,0.00022191,2]
[335153062,1723891374160,-500.0,0.00022191,2]
[335153063,1723891374185,-500.0,0.00022191,2]
[335153064,1723891374210,-500.0,0.00022191,2]
[335153065,1723891374237,-596.96,0.00022191,2]
[335153066,1723891374271,-500.0,0.00022191,2]
[335153067,1723891374296,-500.0,0.00022191,2]
[335153068,1723891374322,-595.55,0.00022191,2]
[335153069,1723891374351,-500.0,0.00022191,2]
[335153070,1723891374376,-500.0,0.00022191,2]
[335153071,1723891374402,-733.25,0.00022191,2]
[335153072,1723891374429,-500.0,0.00022191,2]
[335153073,1723891374455,-611.55,0.00022191,2]
[335153074,1723891374481,-500.0,0.00022191,2]
[335153075,1723891374506,-557.24,0.00022191,2]
[335153076,1723891374536,-500.0,0.00022191,2]
[335153077,1723891374566,-1056.32,0.00022191,2]
[335153078,1723891374595,-500.0,0.00022191,2]
[335153079,1723891374626,-500.0,0.00022191,2]
[335153080,1723891374655,-528.21,0.00022191,2]
[335153081,1723891374684,-788.64,0.00022191,2]
[335153082,1723891374710,-714.0,0.00022191,2]
[335153083,1723891374738,-500.0,0.00022191,2]
[335153084,1723891374766,-500.0,0.00022191,2]
[335153085,1723891374793,-521.44,0.00022191,2]
[335153086,1723891374820,-604.07,0.00022191,2]
[335153087,1723891374847,-500.0,0.00022191,2]
[335153088,1723891374873,-500.0,0.00022191,2]
[335153089,1723891374899,-1279.11,0.00022191,2]
[335153090,1723891374927,-611.28,0.00022191,2]
[335153091,1723891374954,-500.0,0.00022191,2]
[335153092,1723891374982,-500.0,0.00022191,2]
[335153093,1723891375009,-500.0,0.00022191,2]
[335153094,1723891375036,-2691.39,0.00022191,2]
[335153095,1723891375067,-500.0,0.00022191,2]
[335153096,1723891375093,-500.0,0.00022191,2]
[335153097,1723891375122,-500.0,0.00022191,2]
[335153098,1723891375149,-500.0,0.00022191,2]
[335153099,1723891375354,-500.0,0.00022191,2]
[335153100,1723891375380,-611.25,0.00022191,2]
[335153101,1723891375406,-500.0,0.00022191,2]
[335153102,1723891375433,-500.0,0.00022191,2]
[335153103,1723891375461,-500.0,0.00022191,2]
[335153104,1723891375488,-673.24,0.00022191,2]
[335153105,1723891375514,-786.26,0.00022191,2]
[335153106,1723891375540,-500.0,0.00022191,2]
[335153107,1723891375567,-2049.78,0.00022191,2]
[335153108,1723891375592,-868.03,0.00022191,2]